fUSD/lending_fUSD_20260622
["ID","MTS","AMOUNT","RATE_DAILY","PERIOD"]
[426023010,1782119474000,-151.0,0.00027397,2]
[426023032,1782119474000,-829.486555,0.00027397,2]
[426023012,1782119474000,-151.0,0.00027397,2]
[426023002,1782119474000,-151.0,0.00027397,2]
[426023011,1782119474000,-263.479769,0.00027397,2]
[426022989,1782119474000,-151.0,0.00027397,2]
[426022992,1782119474000,-151.0,0.00027397,2]
[426022993,1782119474000,-161.456492,0.00027397,2]
[426022994,1782119474000,-151.0,0.00027397,2]
[426022990,1782119474000,-151.0,0.00027397,2]
[426022991,1782119474000,-151.0,0.00027397,2]
[426022988,1782119474000,-151.0,0.00027397,2]
[426022996,1782119474000,-151.0,0.00027397,2]
[426023006,1782119474000,-290.195554,0.00027397,2]
[426022999,1782119474000,-151.0,0.00027397,2]
[426023001,1782119474000,-151.0,0.00027397,2]
[426022995,1782119474000,-151.0,0.00027397,2]
[426023029,1782119474000,-829.486555,0.00027397,2]
[426023007,1782119474000,-249.569941,0.00027397,2]
[426023000,1782119474000,-151.0,0.00027397,2]
[426022997,1782119474000,-151.0,0.00027397,2]
[426022998,1782119474000,-151.0,0.00027397,2]
[426023005,1782119474000,-151.0,0.00027397,2]
[426023004,1782119474000,-151.0,0.00027397,2]
[426023003,1782119474000,-151.0,0.00027397,2]
[426023008,1782119474000,-151.0,0.00027397,2]
[426023009,1782119474000,-151.0,0.00027397,2]
[426023036,1782119474000,-829.486555,0.00027397,2]
[426023019,1782119474000,-151.0,0.00027397,2]
[426023037,1782119474000,-829.486555,0.00027397,2]
[426023060,1782119474000,-293.35736,0.00027397,2]
[426023064,1782119474000,-157.706786,0.00027397,2]
[426023067,1782119474000,-293.35736,0.00027397,2]
[426023066,1782119474000,-293.35736,0.00027397,2]
[426023065,1782119474000,-293.35736,0.00027397,2]
[426023070,1782119474000,-184.881995,0.00027397,2]
[426023073,1782119474000,-184.881995,0.00027397,2]
[426023071,1782119474000,-151.0,0.00027397,2]
[426023075,1782119474000,-151.0,0.00027397,2]
[426023077,1782119474000,-157.479459,0.00027397,2]
[426023076,1782119474000,-184.881995,0.00027397,2]
[426023078,1782119474000,-184.881995,0.00027397,2]
[426023069,1782119474000,-15835.6,0.00027397,10]
[426023072,1782119474000,-151.0,0.00027397,2]
[426023068,1782119474000,-293.357363,0.00027397,2]
[426023080,1782119474000,-184.881995,0.00027397,2]
[426023079,1782119474000,-151.0,0.00027397,2]
[426023082,1782119474000,-184.881995,0.00027397,2]
[426023083,1782119474000,-202.50225,0.00027397,2]
[426023035,1782119474000,-829.486555,0.00027397,2]
[426023081,1782119474000,-151.0,0.00027397,2]
[426023063,1782119474000,-293.35736,0.00027397,2]
[426023062,1782119474000,-151.0,0.00027397,2]
[426023074,1782119474000,-159.101933,0.00027397,2]
[426023059,1782119474000,-293.35736,0.00027397,2]
[426023038,1782119474000,-293.35736,0.00027397,2]
[426023061,1782119474000,-293.35736,0.00027397,2]
[426023040,1782119474000,-293.35736,0.00027397,2]
[426023039,1782119474000,-829.486555,0.00027397,2]
[426023041,1782119474000,-829.486555,0.00027397,2]
[426023044,1782119474000,-19002.73,0.00027397,10]
[426023045,1782119474000,-293.35736,0.00027397,2]
[426023042,1782119474000,-293.35736,0.00027397,2]
[426023046,1782119474000,-829.486555,0.00027397,2]
[426023050,1782119474000,-829.486552,0.00027397,2]
[426023052,1782119474000,-293.35736,0.00027397,2]
[426023043,1782119474000,-829.486555,0.00027397,2]
[426023051,1782119474000,-293.35736,0.00027397,2]
[426023055,1782119474000,-151.0,0.00027397,2]
[426023054,1782119474000,-293.35736,0.00027397,2]
[426023053,1782119474000,-293.35736,0.00027397,2]
[426023048,1782119474000,-829.486555,0.00027397,2]
[426023047,1782119474000,-293.35736,0.00027397,2]
[426023049,1782119474000,-293.35736,0.00027397,2]
[426023056,1782119474000,-293.35736,0.00027397,2]
[426023058,1782119474000,-293.35736,0.00027397,2]
[426023057,1782119474000,-158.257488,0.00027397,2]
[426023122,1782119475000,-1063.8,0.000274,7]
[426023126,1782119475000,-1777.0,0.000274,2]
[426023120,1782119475000,-150.0,0.00027397,2]
[426023125,1782119475000,-1228.11,0.000274,2]
[426023123,1782119475000,-400.26,0.000274,7]
[426023116,1782119475000,-169.17370802,0.00027397,2]
[426023121,1782119475000,-150.0,0.00027398,2]
[426023114,1782119475000,-7469.201779,0.00027397,2]
[426023118,1782119475000,-151.95069062,0.00027397,2]
[426023124,1782119475000,-1145.44,0.000274,2]
[426023119,1782119475000,-241.32334738,0.00027397,2]
[426023128,1782119475000,-49535.85663792,0.000274,2]
[426023136,1782119475000,-163.97868915,0.00027488,2]
[426023129,1782119475000,-1928.63,0.000274,2]
[426023135,1782119475000,-5000.0,0.0002748,30]
[426023137,1782119475000,-500.0,0.000275,7]
[426023130,1782119475000,-200.0,0.00027437,2]
[426023133,1782119475000,-400.0,0.0002747,2]
[426023131,1782119475000,-200.0,0.00027449,2]
[426023132,1782119475000,-700.0,0.0002747,2]
[426023134,1782119475000,-333.41680622,0.00027473,120]
[426023138,1782119475000,-50000.0,0.000275,5]
[426023142,1782119475000,-151.0,0.000275,7]
[426023117,1782119475000,-303.90138124,0.00027397,2]
[426023141,1782119475000,-273.404264,0.000275,7]
[426023127,1782119475000,-150.0,0.000274,2]
[426023111,1782119475000,-7469.201779,0.00027397,2]
[426023086,1782119475000,-184.881995,0.00027397,2]
[426023109,1782119475000,-7469.201779,0.00027397,2]
[426023140,1782119475000,-151.0,0.000275,7]
[426023090,1782119475000,-151.0,0.00027397,2]
[426023089,1782119475000,-184.881995,0.00027397,2]
[426023084,1782119475000,-248.709433,0.00027397,2]
[426023085,1782119475000,-184.881995,0.00027397,2]
[426023087,1782119475000,-184.881995,0.00027397,2]
[426023088,1782119475000,-184.881995,0.00027397,2]
[426023097,1782119475000,-151.0,0.00027397,2]
[426023098,1782119475000,-184.881995,0.00027397,2]
[426023094,1782119475000,-184.881995,0.00027397,2]
[426023101,1782119475000,-184.881995,0.00027397,2]
[426023099,1782119475000,-160.317757,0.00027397,2]
[426023092,1782119475000,-151.0,0.00027397,2]
[426023091,1782119475000,-184.881995,0.00027397,2]
[426023102,1782119475000,-13196.34,0.00027397,10]
[426023100,1782119475000,-7469.201779,0.00027397,2]
[426023096,1782119475000,-184.881995,0.00027397,2]
[426023095,1782119475000,-151.0,0.00027397,2]
[426023093,1782119475000,-159.451735,0.00027397,2]
[426023104,1782119475000,-184.881995,0.00027397,2]
[426023103,1782119475000,-7469.201779,0.00027397,2]
[426023105,1782119475000,-184.881995,0.00027397,2]
[426023106,1782119475000,-7469.201779,0.00027397,2]
[426023108,1782119475000,-184.881995,0.00027397,2]
[426023113,1782119475000,-1170.064527,0.00027397,2]
[426023110,1782119475000,-184.88199578,0.00027397,2]
[426023112,1782119475000,-7469.201779,0.00027397,2]
[426023107,1782119475000,-164.274481,0.00027397,2]
[426023143,1782119475000,-151.0,0.000275,7]
[426023115,1782119475000,-7469.201779,0.00027397,2]
[426023144,1782119475000,-151.0,0.000275,7]
[426023187,1782119475000,-155.90730783,0.00027571,2]
[426023177,1782119475000,-349.17853396,0.00027571,2]
[426023176,1782119475000,-170.12573961,0.00027563,30]
[426023178,1782119475000,-508.43357871,0.00027571,2]
[426023184,1782119475000,-204.13017387,0.00027571,2]
[426023182,1782119475000,-629.35225382,0.00027571,2]
[426023179,1782119475000,-618.43485713,0.00027571,2]
[426023183,1782119475000,-500.2291018,0.00027571,2]
[426023180,1782119475000,-232.0531422,0.00027571,2]
[426023181,1782119475000,-263.84425978,0.00027571,2]
[426023185,1782119475000,-269.32317296,0.00027571,2]
[426023186,1782119475000,-480.44472034,0.00027571,2]
[426023188,1782119475000,-163.71747587,0.00027571,2]
[426023191,1782119475000,-219.27633402,0.00027571,2]
[426023194,1782119475000,-228.86671973,0.00027571,2]
[426023190,1782119475000,-292.30807817,0.00027571,2]
[426023198,1782119475000,-160.12493702,0.00027571,2]
[426023189,1782119475000,-495.70829012,0.00027571,2]
[426023195,1782119475000,-464.89641967,0.00027571,2]
[426023196,1782119475000,-338.34741605,0.00027571,2]
[426023192,1782119475000,-150.84822407,0.00027571,2]
[426023193,1782119475000,-276.25830837,0.00027571,2]
[426023197,1782119475000,-561.17569149,0.00027571,2]
[426023200,1782119475000,-627.44040728,0.00027571,2]
[426023199,1782119475000,-159.67444372,0.00027571,2]
[426023201,1782119475000,-487.45376416,0.00027571,2]
[426023146,1782119475000,-151.0,0.000275,7]
[426023170,1782119475000,-2358.78,0.00027553,30]
[426023172,1782119475000,-2366.05,0.00027554,30]
[426023202,1782119475000,-520.72679961,0.00027571,2]
[426023173,1782119475000,-1911.58,0.00027555,30]
[426023168,1782119475000,-1320.06,0.00027552,30]
[426023148,1782119475000,-159.104499,0.000275,7]
[426023139,1782119475000,-151.0,0.000275,7]
[426023149,1782119475000,-159.104499,0.000275,7]
[426023147,1782119475000,-151.0,0.000275,7]
[426023151,1782119475000,-159.104499,0.000275,7]
[426023162,1782119475000,-264.0,0.00027546,5]
[426023150,1782119475000,-159.104499,0.000275,7]
[426023161,1782119475000,-2098.9536,0.00027524,2]
[426023154,1782119475000,-538.003716,0.000275,7]
[426023152,1782119475000,-538.003716,0.000275,7]
[426023153,1782119475000,-538.003716,0.000275,7]
[426023155,1782119475000,-151.0,0.000275,7]
[426023145,1782119475000,-261.986754,0.000275,7]
[426023160,1782119475000,-227.413967,0.000275,7]
[426023164,1782119475000,-189.944184,0.0002755,2]
[426023175,1782119475000,-510.47,0.00027561,2]
[426023165,1782119475000,-210.767065,0.0002755,2]
[426023171,1782119475000,-1519.5,0.00027554,30]
[426023158,1782119475000,-227.413967,0.000275,7]
[426023166,1782119475000,-165.389535,0.0002755,2]
[426023174,1782119475000,-508.8,0.0002756,2]
[426023167,1782119475000,-191.168929,0.0002755,2]
[426023163,1782119475000,-285.682151,0.0002755,2]
[426023157,1782119475000,-227.413967,0.000275,7]
[426023159,1782119475000,-227.413967,0.000275,7]
[426023156,1782119475000,-538.003716,0.000275,7]
[426023169,1782119475000,-1348.38,0.00027553,30]
[426023246,1782119476000,-502.98965044,0.00027583,2]
[426023236,1782119476000,-556.75578718,0.00027571,2]
[426023242,1782119476000,-179.150451,0.00027573,10]
[426023241,1782119476000,-231.0,0.00027573,10]
[426023230,1782119476000,-340.85105621,0.00027571,2]
[426023239,1782119476000,-541.96236575,0.00027571,2]
[426023238,1782119476000,-529.90038647,0.00027571,2]
[426023237,1782119476000,-600.01019711,0.00027571,2]
[426023235,1782119476000,-200.31206096,0.00027571,2]
[426023232,1782119476000,-153.07171842,0.00027571,2]
[426023240,1782119476000,-572.47121166,0.00027571,2]
[426023245,1782119476000,-467.44599386,0.00027583,2]
[426023251,1782119476000,-196.40131464,0.00027583,2]
[426023243,1782119476000,-1134.17159745,0.00027583,2]
[426023248,1782119476000,-620.65114473,0.00027583,2]
[426023247,1782119476000,-665.29245342,0.00027583,2]
[426023250,1782119476000,-614.76905604,0.00027583,2]
[426023249,1782119476000,-244.32083492,0.00027583,2]
[426023253,1782119476000,-200.29124701,0.00027583,2]
[426023252,1782119476000,-237.30670204,0.00027583,2]
[426023255,1782119476000,-234.95329043,0.00027583,2]
[426023257,1782119476000,-560.65911418,0.00027583,2]
[426023254,1782119476000,-576.57447638,0.00027583,2]
[426023256,1782119476000,-235.51960683,0.00027583,2]
[426023227,1782119476000,-516.7127821,0.00027571,2]
[426023244,1782119476000,-226.83431949,0.00027583,2]
[426023233,1782119476000,-455.85207187,0.00027571,2]
[426023217,1782119476000,-542.13619413,0.00027571,2]
[426023226,1782119476000,-445.29936158,0.00027571,2]
[426023258,1782119476000,-604.25636627,0.00027583,2]
[426023209,1782119476000,-608.660275,0.00027571,2]
[426023210,1782119476000,-354.73576523,0.00027571,2]
[426023205,1782119476000,-312.42406205,0.00027571,2]
[426023204,1782119476000,-327.77072213,0.00027571,2]
[426023203,1782119476000,-598.39069427,0.00027571,2]
[426023208,1782119476000,-594.84631427,0.00027571,2]
[426023207,1782119476000,-456.85709405,0.00027571,2]
[426023206,1782119476000,-354.03137665,0.00027571,2]
[426023211,1782119476000,-458.67326371,0.00027571,2]
[426023216,1782119476000,-587.09864213,0.00027571,2]
[426023213,1782119476000,-454.40538929,0.00027571,2]
[426023228,1782119476000,-352.53559961,0.00027571,2]
[426023214,1782119476000,-162.93427311,0.00027571,2]
[426023215,1782119476000,-575.22374798,0.00027571,2]
[426023220,1782119476000,-595.99763061,0.00027571,2]
[426023222,1782119476000,-312.04545058,0.00027571,2]
[426023219,1782119476000,-352.31667915,0.00027571,2]
[426023218,1782119476000,-155.22938009,0.00027571,2]
[426023221,1782119476000,-643.97374705,0.00027571,2]
[426023224,1782119476000,-352.2277613,0.00027571,2]
[426023234,1782119476000,-190.86020306,0.00027571,2]
[426023225,1782119476000,-382.39856259,0.00027571,2]
[426023223,1782119476000,-492.62878389,0.00027571,2]
[426023229,1782119476000,-496.26762964,0.00027571,2]
[426023231,1782119476000,-591.59395864,0.00027571,2]
[426023212,1782119476000,-302.85250253,0.00027571,2]
[426023267,1782119476000,-508.8,0.0002759,7]
[426023259,1782119476000,-184.58594927,0.00027583,2]
[426023260,1782119476000,-569.84114444,0.00027584,2]
[426023293,1782119476000,-151.0,0.0002767,7]
[426023295,1782119476000,-151.0,0.0002767,3]
[426023294,1782119476000,-261.081235,0.0002767,7]
[426023296,1782119476000,-151.0,0.0002767,3]
[426023297,1782119476000,-151.0,0.0002767,3]
[426023298,1782119476000,-201.266347,0.0002767,3]
[426023303,1782119476000,-151.0,0.0002767,7]
[426023302,1782119476000,-151.0,0.0002767,7]
[426023300,1782119476000,-151.0,0.0002767,7]
[426023299,1782119476000,-151.0,0.0002767,7]
[426023301,1782119476000,-151.0,0.0002767,7]
[426023304,1782119476000,-151.0,0.0002767,7]
[426023291,1782119476000,-537.9021361,0.0002767,2]
[426023309,1782119476000,-151.0,0.0002767,7]
[426023308,1782119476000,-151.0,0.0002767,7]
[426023306,1782119476000,-151.0,0.0002767,7]
[426023307,1782119476000,-151.0,0.0002767,7]
[426023310,1782119476000,-151.0,0.0002767,7]
[426023314,1782119476000,-209.911334,0.0002767,7]
[426023315,1782119476000,-151.0,0.0002767,7]
[426023311,1782119476000,-151.0,0.0002767,7]
[426023313,1782119476000,-151.0,0.0002767,7]
[426023312,1782119476000,-151.0,0.0002767,7]
[426023317,1782119476000,-191.700579,0.0002767,7]
[426023266,1782119476000,-510.47,0.0002759,7]
[426023318,1782119476000,-191.700579,0.0002767,7]
[426023305,1782119476000,-179.254624,0.0002767,7]
[426023286,1782119476000,-537.90213611,0.0002767,2]
[426023316,1782119476000,-191.700579,0.0002767,7]
[426023283,1782119476000,-537.90213611,0.0002767,2]
[426023285,1782119476000,-537.90213611,0.0002767,2]
[426023264,1782119476000,-281.61110186,0.00027584,2]
[426023262,1782119476000,-160.2172018,0.00027584,2]
[426023265,1782119476000,-210.9357164,0.00027584,2]
[426023263,1782119476000,-360.87196889,0.00027584,2]
[426023268,1782119476000,-175.65797822,0.00027619,30]
[426023280,1782119476000,-310.59831203,0.0002767,2]
[426023270,1782119476000,-510.47,0.0002762,30]
[426023269,1782119476000,-195.57145326,0.00027619,30]
[426023272,1782119476000,-186.35898722,0.00027629,30]
[426023273,1782119476000,-500.0,0.00027643,2]
[426023276,1782119476000,-300.0,0.00027669,10]
[426023271,1782119476000,-508.8,0.0002762,30]
[426023261,1782119476000,-288.48074542,0.00027584,2]
[426023274,1782119476000,-510.47,0.0002765,2]
[426023292,1782119476000,-537.9021361,0.0002767,2]
[426023287,1782119476000,-537.90213611,0.0002767,2]
[426023290,1782119476000,-537.90213611,0.0002767,2]
[426023277,1782119476000,-300.0,0.0002767,10]
[426023288,1782119476000,-537.90213611,0.0002767,2]
[426023289,1782119476000,-537.90213611,0.0002767,2]
[426023281,1782119476000,-537.90213611,0.0002767,2]
[426023282,1782119476000,-537.90213611,0.0002767,2]
[426023279,1782119476000,-400.0,0.0002767,2]
[426023278,1782119476000,-700.0,0.0002767,2]
[426023275,1782119476000,-508.8,0.0002765,2]
[426023284,1782119476000,-537.90213611,0.0002767,2]
[426023355,1782119477000,-452.624667,0.0002767,7]
[426023357,1782119477000,-1212.405885,0.0002767,7]
[426023360,1782119477000,-234.390911,0.0002767,7]
[426023358,1782119477000,-234.390911,0.0002767,7]
[426023349,1782119477000,-227.413967,0.0002767,7]
[426023353,1782119477000,-227.413959,0.0002767,7]
[426023351,1782119477000,-452.624664,0.0002767,7]
[426023352,1782119477000,-452.624664,0.0002767,7]
[426023354,1782119477000,-452.624664,0.0002767,7]
[426023350,1782119477000,-227.413967,0.0002767,7]
[426023359,1782119477000,-1212.405885,0.0002767,7]
[426023363,1782119477000,-1212.405885,0.0002767,7]
[426023362,1782119477000,-228.211841,0.0002767,7]
[426023375,1782119477000,-251.422748,0.0002767,7]
[426023365,1782119477000,-228.211841,0.0002767,7]
[426023366,1782119477000,-234.390915,0.0002767,7]
[426023364,1782119477000,-234.390911,0.0002767,7]
[426023367,1782119477000,-1212.405886,0.0002767,7]
[426023319,1782119477000,-281.965206,0.0002767,7]
[426023369,1782119477000,-228.211833,0.0002767,7]
[426023374,1782119477000,-186.276067,0.0002767,7]
[426023373,1782119477000,-166.842779,0.0002767,7]
[426023346,1782119477000,-151.0,0.0002767,7]
[426023356,1782119477000,-151.0,0.0002767,7]
[426023348,1782119477000,-227.413967,0.0002767,7]
[426023330,1782119477000,-425.322167,0.0002767,7]
[426023345,1782119477000,-538.003716,0.0002767,7]
[426023320,1782119477000,-191.700579,0.0002767,7]
[426023321,1782119477000,-312.809699,0.0002767,7]
[426023322,1782119477000,-312.809699,0.0002767,7]
[426023324,1782119477000,-312.809699,0.0002767,7]
[426023325,1782119477000,-425.322167,0.0002767,7]
[426023326,1782119477000,-151.0,0.0002767,7]
[426023323,1782119477000,-312.809699,0.0002767,7]
[426023327,1782119477000,-425.322167,0.0002767,7]
[426023331,1782119477000,-151.0,0.0002767,7]
[426023334,1782119477000,-193.189033,0.0002767,7]
[426023336,1782119477000,-151.0,0.0002767,7]
[426023347,1782119477000,-538.003711,0.0002767,7]
[426023328,1782119477000,-151.0,0.0002767,7]
[426023337,1782119477000,-151.0,0.0002767,7]
[426023329,1782119477000,-425.322167,0.0002767,7]
[426023335,1782119477000,-151.0,0.0002767,7]
[426023332,1782119477000,-151.0,0.0002767,7]
[426023339,1782119477000,-159.104499,0.0002767,7]
[426023338,1782119477000,-219.804192,0.0002767,7]
[426023341,1782119477000,-159.104499,0.0002767,7]
[426023340,1782119477000,-159.104499,0.0002767,7]
[426023342,1782119477000,-159.104492,0.0002767,7]
[426023343,1782119477000,-538.003716,0.0002767,7]
[426023344,1782119477000,-538.003716,0.0002767,7]
[426023333,1782119477000,-183.603009,0.0002767,7]
[426023377,1782119477000,-251.422748,0.0002767,7]
[426023361,1782119477000,-280.613376,0.0002767,7]
[426023370,1782119477000,-166.842779,0.0002767,7]
[426023412,1782119477000,-165.205048,0.0002767,7]
[426023404,1782119477000,-151.0,0.0002767,7]
[426023408,1782119477000,-371.550783,0.0002767,7]
[426023405,1782119477000,-371.550783,0.0002767,7]
[426023411,1782119477000,-371.550783,0.0002767,7]
[426023403,1782119477000,-151.0,0.0002767,7]
[426023406,1782119477000,-165.205048,0.0002767,7]
[426023413,1782119477000,-169.793776,0.0002767,7]
[426023410,1782119477000,-169.793776,0.0002767,7]
[426023409,1782119477000,-165.205048,0.0002767,7]
[426023415,1782119477000,-371.550775,0.0002767,7]
[426023407,1782119477000,-151.0,0.0002767,7]
[426023425,1782119477000,-151.0,0.0002767,7]
[426023417,1782119477000,-169.793776,0.0002767,7]
[426023418,1782119477000,-177.737,0.0002767,7]
[426023416,1782119477000,-165.205047,0.0002767,7]
[426023422,1782119477000,-177.737,0.0002767,7]
[426023419,1782119477000,-169.793782,0.0002767,7]
[426023424,1782119477000,-193.064921,0.0002767,7]
[426023423,1782119477000,-174.168585,0.0002767,7]
[426023421,1782119477000,-193.064921,0.0002767,7]
[426023420,1782119477000,-151.0,0.0002767,7]
[426023426,1782119477000,-177.737,0.0002767,7]
[426023372,1782119477000,-251.422748,0.0002767,7]
[426023414,1782119477000,-151.0,0.0002767,7]
[426023402,1782119477000,-1095.461378,0.0002767,7]
[426023378,1782119477000,-166.842779,0.0002767,7]
[426023400,1782119477000,-1095.461373,0.0002767,7]
[426023401,1782119477000,-1095.461373,0.0002767,7]
[426023368,1782119477000,-228.211841,0.0002767,7]
[426023376,1782119477000,-186.276067,0.0002767,7]
[426023379,1782119477000,-186.276067,0.0002767,7]
[426023381,1782119477000,-186.276069,0.0002767,7]
[426023382,1782119477000,-151.0,0.0002767,7]
[426023380,1782119477000,-251.422757,0.0002767,7]
[426023386,1782119477000,-1579.512093,0.0002767,7]
[426023389,1782119477000,-151.0,0.0002767,7]
[426023387,1782119477000,-1579.512097,0.0002767,7]
[426023383,1782119477000,-151.0,0.0002767,7]
[426023388,1782119477000,-290.901492,0.0002767,7]
[426023371,1782119477000,-166.842779,0.0002767,7]
[426023390,1782119477000,-151.0,0.0002767,7]
[426023385,1782119477000,-1579.512093,0.0002767,7]
[426023399,1782119477000,-1095.461373,0.0002767,7]
[426023395,1782119477000,-302.291542,0.0002767,7]
[426023398,1782119477000,-302.291534,0.0002767,7]
[426023396,1782119477000,-302.291542,0.0002767,7]
[426023397,1782119477000,-302.291542,0.0002767,7]
[426023393,1782119477000,-1316.989916,0.0002767,7]
[426023391,1782119477000,-1316.989916,0.0002767,7]
[426023392,1782119477000,-1316.989916,0.0002767,7]
[426023384,1782119477000,-1579.512093,0.0002767,7]
[426023394,1782119477000,-1316.989914,0.0002767,7]
[426023448,1782119478000,-1015.247852,0.0002767,7]
[426023439,1782119478000,-225.484935,0.0002767,7]
[426023446,1782119478000,-1170.064527,0.00027397,2]
[426023445,1782119478000,-500.0,0.00027397,2]
[426023441,1782119478000,-181.966579,0.0002767,7]
[426023440,1782119478000,-1015.247852,0.0002767,7]
[426023444,1782119478000,-343.87660923,0.0002767,7]
[426023443,1782119478000,-151.0,0.0002767,7]
[426023442,1782119478000,-1015.247852,0.0002767,7]
[426023437,1782119478000,-259.394939,0.0002767,7]
[426023430,1782119478000,-225.484938,0.0002767,7]
[426023428,1782119478000,-193.064921,0.0002767,7]
[426023433,1782119478000,-225.484938,0.0002767,7]
[426023436,1782119478000,-225.484938,0.0002767,7]
[426023435,1782119478000,-151.0,0.0002767,7]
[426023429,1782119478000,-177.736997,0.0002767,7]
[426023432,1782119478000,-174.168585,0.0002767,7]
[426023431,1782119478000,-193.064922,0.0002767,7]
[426023427,1782119478000,-174.168585,0.0002767,7]
[426023450,1782119478000,-1015.247849,0.0002767,7]
[426023434,1782119478000,-174.168588,0.0002767,7]
[426023449,1782119478000,-1565.72898,0.0002767,7]
[426023438,1782119478000,-151.0,0.0002767,7]
[426023447,1782119478000,-1221.85237077,0.0002767,7]
[426023451,1782119478000,-1565.72898,0.0002767,7]
[426023469,1782119478000,-318.223846,0.0002767,7]
[426023464,1782119478000,-151.0,0.0002767,7]
[426023468,1782119478000,-151.0,0.0002767,7]
[426023466,1782119478000,-151.0,0.0002767,7]
[426023465,1782119478000,-318.223856,0.0002767,7]
[426023467,1782119478000,-318.223856,0.0002767,7]
[426023463,1782119478000,-318.223856,0.0002767,7]
[426023461,1782119478000,-176.199558,0.0002767,7]
[426023470,1782119478000,-151.0,0.0002767,7]
[426023462,1782119478000,-176.199548,0.0002767,7]
[426023472,1782119478000,-151.0,0.0002767,7]
[426023459,1782119478000,-151.0,0.0002767,7]
[426023471,1782119478000,-151.0,0.0002767,7]
[426023460,1782119478000,-176.199558,0.0002767,7]
[426023454,1782119478000,-151.0,0.0002767,7]
[426023457,1782119478000,-251.388182,0.0002767,7]
[426023453,1782119478000,-151.0,0.0002767,7]
[426023458,1782119478000,-176.199558,0.0002767,7]
[426023456,1782119478000,-151.0,0.0002767,7]
[426023455,1782119478000,-151.0,0.0002767,7]
[426023452,1782119478000,-1565.728973,0.0002767,7]
[426023504,1782119479000,-151.0,0.0002767,7]
[426023503,1782119479000,-151.0,0.0002767,7]
[426023508,1782119479000,-4579.181331,0.0002767,7]
[426023501,1782119479000,-205.574998,0.0002767,7]
[426023507,1782119479000,-151.0,0.0002767,7]
[426023500,1782119479000,-151.0,0.0002767,7]
[426023506,1782119479000,-4579.181331,0.0002767,7]
[426023499,1782119479000,-151.0,0.0002767,7]
[426023505,1782119479000,-151.0,0.0002767,7]
[426023497,1782119479000,-695.590172,0.0002767,7]
[426023520,1782119479000,-151.0,0.0002767,7]
[426023521,1782119479000,-814.599324,0.0002767,7]
[426023512,1782119479000,-4579.181325,0.0002767,7]
[426023514,1782119479000,-151.0,0.0002767,7]
[426023522,1782119479000,-239.79914,0.0002767,7]
[426023509,1782119479000,-151.0,0.0002767,7]
[426023516,1782119479000,-239.79914,0.0002767,7]
[426023518,1782119479000,-814.599324,0.0002767,7]
[426023511,1782119479000,-564.610727,0.0002767,7]
[426023513,1782119479000,-564.610727,0.0002767,7]
[426023502,1782119479000,-151.0,0.0002767,7]
[426023510,1782119479000,-4579.181331,0.0002767,7]
[426023498,1782119479000,-695.590182,0.0002767,7]
[426023495,1782119479000,-151.0,0.0002767,7]
[426023491,1782119479000,-585.346968,0.0002767,7]
[426023517,1782119479000,-564.610725,0.0002767,7]
[426023473,1782119479000,-151.0,0.0002767,7]
[426023474,1782119479000,-151.0,0.0002767,7]
[426023482,1782119479000,-585.346975,0.0002767,7]
[426023476,1782119479000,-151.0,0.0002767,7]
[426023478,1782119479000,-238.297006,0.0002767,7]
[426023481,1782119479000,-150.0,0.0002767,2]
[426023475,1782119479000,-151.0,0.0002767,7]
[426023480,1782119479000,-192.623709,0.0002767,7]